[Event "European Women Blitz-ch 2024"]
[Site "Monaco"]
[Date "2025.01.10"]
[Round "12.2"]
[White "Tsolakidou, Stavroula"]
[Black "Maltsevskaya, Aleksandra"]
[Result "1/2-1/2"]
[Annotator "TA"]
[ECO "B12"]
[WhiteElo "2451"]
[BlackElo "2368"]
[PlyCount "94"]
[EventDate "2025.01.06"]
[EventType "swiss"]
[EventCountry "MNC"]
[SourceTitle "playchess.com"]
[Source "ChessBase"]
[SourceQuality "1"]
[TimeControl "180+2"]

{[%evp 11,94,-1,17,0,0,16,0,0,0,10,11,0,0,0,0,0,0,3,22,0,0,0,52,-6,0,0,31,37,97,98,114,77,88,17,19,18,21,3,22,0,44,0,0,0,25,-38,-31,-33,-28,-46,0,0,20,-116,-110,-119,-123,-150,-121,-112,-26,-14,-22,-58,-10,-68,-28,-68,0,-52,-51,-70,-59,-349,-100,-134,-61,-61,-62,-62,0,0,0,0,0]} 1. e4 {[%emt 0:00:02]} c6 {[%emt 0:00:01]} 2. d4 {[%emt 0:00:02]} d5 {[%emt 0:00:01]} 3. e5 {[%emt 0:00:06]} Bf5 {[%emt 0:00:01]} 4. Nd2 {[%emt 0:00:01]} e6 {[%emt 0:00:02]} 5. Nb3 {[%emt 0:00:01]} c5 {[%emt 0:00:01]} 6. Bb5+ {[%emt 0:00:05]} (6. dxc5 $5) 6... Nc6 {[%emt 0:00:01]} 7. Bxc6+ {[%emt 0:00:07]} (7. dxc5 $5 Bxc5 8. Bxc6+ bxc6 9. Nxc5 Qa5+ 10. c3 Qxc5 11. Ne2 $11) 7... bxc6 {[%emt 0:00:02]} 8. Nxc5 {[%emt 0:00:02]} Bxc5 {[%emt 0:00:01]} 9. dxc5 {[%emt 0:00:01]} Qa5+ {[%emt 0:00:03]} 10. c3 {[%emt 0:00:02]} Qxc5 {[%emt 0:00:02]} 11. Ne2 {[%emt 0:00:01]} Ne7 {[%emt 0:00:02]} 12. O-O {[%emt 0:00:04]} O-O {[%emt 0:00:02]} 13. Be3 {[%emt 0:00:03]} Qb5 {[%emt 0:00:04]} 14. b4 {[%emt 0:00:19]} Bd3 {[%emt 0:00:02]} 15. Nd4 {[%emt 0:00:21]} Qc4 {[%emt 0:00:01]} 16. Re1 $1 {[%emt 0:00:01]} Rfc8 {[%emt 0:00:30]} (16... Qxc3 $11 17. Rc1 Qa3) 17. Bg5 {[%emt 0:00:36]} (17. Nb3 $14) 17... Nf5 $11 {[%emt 0:01:27]} (17... Qxc3 $2 18. Bxe7 Qxd4 19. Re3 $18) 18. Nb3 {[%emt 0:00:06]} h6 {[%emt 0:00:05]} (18... Qxc3 $2 19. Rc1 Qxb4 20. Qxd3 $18) (18... a5 $5) 19. Bd2 {[%emt 0:00:15]} d4 {[%emt 0:00:11]} (19... Nh4 $14) 20. Rc1 $16 {[%emt 0:00:08]} Qd5 {[%emt 0:00:33]} 21. cxd4 {[%emt 0:00:29]} (21. Bxh6 {looks sharper.} Nh4 22. Qg4 Ng6 23. Bg5) 21... Bc4 {[%emt 0:00:12]} 22. Be3 {[%emt 0:00:18]} (22. Na5 $16 Ba6 23. a4) 22... Bxb3 $11 {[%emt 0:00:04]} 23. axb3 {[%emt 0:00:06]} Rcb8 {[%emt 0:00:09]} 24. Rc5 {[%emt 0:00:02]} Qd7 {[%emt 0:00:02]} 25. Rc4 {[%emt 0:00:07]} Rb5 {[%emt 0:00:06]} 26. Qc2 {[%emt 0:00:01]} Rab8 {[%emt 0:00:02]} 27. Qc3 {[%emt 0:00:15]} Ne7 {[%emt 0:00:03]} 28. Rc1 {[%emt 0:00:12]} (28. Bd2 $11) 28... Nd5 $15 {[%emt 0:00:02]} 29. Qd3 {[%emt 0:00:03]} Nxb4 {[%emt 0:00:01]} 30. Qe4 {[%emt 0:00:02]} Qd5 {[%emt 0:00:04]} (30... Nd5 $15 {should be considered.}) 31. Qg4 $11 {[%emt 0:00:01]} Kh7 {[%emt 0:00:01]} 32. Rc5 {[%emt 0:00:03]} (32. R1c3 $11 Qd8 33. Bd2) 32... Rxc5 $17 {[%emt 0:00:02]} (32... Qxb3 $6 33. R5c3 Qb2 34. Bxh6 gxh6 35. Qf4 $11) 33. Rxc5 {[%emt 0:00:02]} Qxb3 {[%emt 0:00:01]} 34. h4 {[%emt 0:00:01]} Qb1+ {[%emt 0:00:02]} 35. Kh2 {[%emt 0:00:01]} Qf5 {[%emt 0:00:01]} (35... Qd3 $17 {aiming for ...Nd5.} 36. Qf3 Rb7) 36. Qxf5+ $11 {[%emt 0:00:02]} exf5 {[%emt 0:00:01]} 37. Ra5 {[%emt 0:00:04]} Nd5 {[%emt 0:00:03]} (37... a6 $15) 38. Rxa7 {[%emt 0:00:01]} (38. g3 $11) 38... f4 $1 $15 {[%emt 0:00:02]} 39. Bc1 $1 {[%emt 0:00:03]} Kg6 {[%emt 0:00:02]} ({Better is} 39... Rb1 $15 40. Ba3 Ra1) 40. h5+ {[%emt 0:00:01]} (40. Ba3 $11) 40... Kxh5 $15 {[%emt 0:00:02]} 41. Rxf7 {[%emt 0:00:02]} g5 {[%emt 0:00:02]} 42. Rd7 $2 {[%emt 0:00:03][%mdl 8192]} (42. Ba3 $15) 42... Rb4 $2 {[%emt 0:00:04]} (42... Rb1 $19 {has better winning chances.} 43. Ba3 Rf1) 43. e6 {[%emt 0:00:01] [#]} Rxd4 {[%emt 0:00:01]} (43... Rb1 $1 $17 {[%cal Rb1c1]} 44. Bd2 Kg6 (44... Nf6 45. f3 $11)) 44. e7 $15 {[%emt 0:00:02]} Re4 {[%emt 0:00:01]} 45. Ba3 {[%emt 0:00:02]} Kg6 {[%emt 0:00:04]} (45... Nf6 $15 46. Rd1 Re6) 46. Rd6+ $11 {[%emt 0:00:00]} Kf5 {[%emt 0:00:04]} 47. Rxc6 {[%emt 0:00:02]} Nxe7 {[%emt 0:00:01]} 1/2-1/2

[Event "European Women Blitz-ch 2024"]
[Site "Monaco"]
[Date "2025.01.10"]
[Round "12.3"]
[White "Kosteniuk, Alexandra"]
[Black "Batsiashvili, Nino"]
[Result "1-0"]
[Annotator "TA"]
[ECO "B07"]
[WhiteElo "2484"]
[BlackElo "2476"]
[PlyCount "119"]
[EventDate "2025.01.06"]
[EventType "swiss"]
[EventCountry "MNC"]
[SourceTitle "playchess.com"]
[Source "ChessBase"]
[SourceQuality "1"]
[TimeControl "180+2"]

{[%evp 47,119,252,231,251,244,227,243,233,231,229,241,240,272,272,272,272,277,249,251,251,237,223,237,245,242,232,233,150,163,143,218,218,211,177,269,262,262,262,307,304,357,389,380,231,209,203,183,169,226,202,245,230,209,168,233,215,882,870,695,237,204,216,417,358,588,498,637,591,1707,1675,29987,29988,29988,29989]} 1. e4 {[%emt 0:00:01]} d6 {[%emt 0:00:00]} 2. d4 {[%emt 0:00:01]} Nf6 {[%emt 0:00:02]} 3. Nc3 {[%emt 0:00:01]} e5 {[%emt 0:00:01]} 4. Nge2 {[%emt 0:00:02]} Be7 {[%emt 0:00:04]} 5. h3 {[%emt 0:00:01]} O-O {[%emt 0:00:04]} 6. g4 {[%emt 0:00:01]} exd4 {[%emt 0:00:12]} 7. Nxd4 {[%emt 0:00:01]} Nc6 {[%emt 0:00:01]} 8. Bg2 {[%emt 0:00:06]} Nxd4 {[%emt 0:00:17]} 9. Qxd4 {[%emt 0:00:01]} Nd7 {[%emt 0:00:13]} 10. O-O {[%emt 0:00:06]} Bf6 {[%emt 0:00:05]} 11. Qe3 {[%emt 0:00:03]} c6 {[%emt 0:00:08]} 12. g5 {[%emt 0:00:10]} Bxc3 {[%emt 0:00:09]} 13. Qxc3 {[%emt 0:00:03]} Qe7 {[%emt 0:00:10]} 14. Qg3 {[%emt 0:00:07]} Re8 {[%emt 0:00:38]} 15. Bf4 {[%emt 0:00:06]} Ne5 {[%emt 0:00:01]} 16. Rad1 {[%emt 0:00:01]} Bd7 {[%emt 0:00:05]} 17. b3 {[%emt 0:00:03]} Rad8 {[%emt 0:00:02]} 18. Be3 {[%emt 0:00:02]} c5 {[%emt 0:00:05]} 19. f4 {[%emt 0:00:04]} Nc6 {[%emt 0:00:02]} 20. c3 {[%emt 0:00:06]} f6 {[%emt 0:00:04]} 21. gxf6 {[%emt 0:00:10]} Qxf6 {[%emt 0:00:01]} 22. f5 {[%emt 0:00:03]} Bc8 {[%emt 0:00:41]} 23. Bg5 {[%emt 0:00:02]} Qe5 {[%emt 0:00:03]} 24. Qxe5 {[%emt 0:00:08]} Nxe5 {[%emt 0:00:03]} 25. Bxd8 {[%emt 0:00:01]} Rxd8 {[%emt 0:00:00]} 26. Rd5 {[%emt 0:00:31]} Kf7 {[%emt 0:00:03]} 27. Rfd1 {[%emt 0:00:01]} Ke7 {[%emt 0:00:00]} 28. Kf2 {[%emt 0:00:03]} b6 {[%emt 0:00:01]} 29. Ke3 {[%emt 0:00:05]} Bb7 {[%emt 0:00:01]} 30. R5d2 {[%emt 0:00:00]} a5 {[%emt 0:00:09]} 31. Bf1 {[%emt 0:00:03]} Bc6 {[%emt 0:00:01]} 32. Bc4 {[%emt 0:00:13]} b5 {[%emt 0:00:06]} 33. Bd5 {[%emt 0:00:01]} Be8 {[%emt 0:00:03]} 34. Rf2 {[%emt 0:00:08]} Kf6 {[%emt 0:00:03]} 35. a3 {[%emt 0:00:12]} Bh5 {[%emt 0:00:03]} 36. Rg1 {[%emt 0:00:01]} Rd7 {[%emt 0:00:01]} 37. b4 {[%emt 0:00:06]} axb4 {[%emt 0:00:18]} 38. axb4 {[%emt 0:00:01]} Rc7 {[%emt 0:00:00]} (38... cxb4 $16 39. cxb4 Rc7) 39. bxc5 $18 {[%emt 0:00:10]} Rxc5 {[%emt 0:00:01]} 40. Rc2 {[%emt 0:00:06]} b4 {[%emt 0:00:01]} (40... Be8 41. Rd1 Bf7 42. Bxf7 Nxf7) 41. Rgc1 $18 {[%emt 0:00:02]} bxc3 {[%emt 0:00:03]} 42. Rxc3 {[%emt 0:00:01]} Ra5 {[%emt 0:00:05]} 43. Rb1 {[%emt 0:00:03]} Ra6 {[%emt 0:00:02]} 44. Rb7 {[%emt 0:00:04]} h6 {[%emt 0:00:03]} 45. Bb3 {[%emt 0:00:23]} g6 {[%emt 0:00:02]} 46. fxg6 {[%emt 0:00:04]} Bxg6 {[%emt 0:00:01]} 47. Bd5 {[%emt 0:00:02]} Bh5 {[%emt 0:00:05]} (47... Bf7 $142 48. Bxf7 Nxf7) 48. Rc1 {[%emt 0:00:03]} Bg6 {[%emt 0:00:01]} 49. Rf1+ {[%emt 0:00:01]} Kg5 {[%emt 0:00:01]} 50. Bb3 {[%emt 0:00:10]} Ra3 {[%emt 0:00:02]} (50... h5 51. Rf4 h4) 51. Kd4 $18 {[%emt 0:00:02]} Ra5 $2 {[%emt 0:00:02]} (51... Ra6 52. Rg7 h5) 52. Rb6 $18 {[%emt 0:00:01]} Ra3 {[%emt 0:00:03]} 53. Bc2 $2 {[%emt 0:00:12]} (53. Rxd6 Rxb3 54. Rg1+ (54. Kxe5 Rb5+ 55. Kd4 Be8 $18) 54... Kh5 55. Kxe5 Bxe4 56. Kxe4) 53... Nf3+ $18 {[%emt 0:00:03]} 54. Kd5 {[%emt 0:00:07]} Bh5 $2 {[%emt 0:00:07]} (54... Kf4 55. h4 (55. Rxd6 Bf7+ 56. Kc5 Rc3+ 57. Kb4 Rc4+ 58. Ka5 Rxc2 $18) (55. Kxd6 Bxe4 56. Bxe4 Kxe4 $16) 55... Ke3) 55. Kxd6 $18 {[%emt 0:00:03]} ({Not} 55. Rxd6 Rc3 $16) 55... Rc3 $2 {[%emt 0:00:01]} (55... Bg6 {was necessary.} 56. Bb1 Nd2) 56. Bb1 {[%emt 0:00:02]} Re3 {[%emt 0:00:06]} 57. Rb5+ {[%emt 0:00:01]} Kf4 {[%emt 0:00:00]} 58. Rxh5 {[%emt 0:00:02]} Rb3 {[%emt 0:00:04]} 59. Rf5+ {[%emt 0:00:03]} Kg3 {[%emt 0:00:01]} 60. R5xf3+ {[%emt 0:00:00]} 1-0

[Event "European Women Blitz-ch 2024"]
[Site "Monaco"]
[Date "2025.01.10"]
[Round "12.4"]
[White "Rudzinska, Michalina"]
[Black "Arabidze, Meri"]
[Result "1-0"]
[Annotator "TA"]
[ECO "B42"]
[WhiteElo "2226"]
[BlackElo "2457"]
[PlyCount "79"]
[EventDate "2025.01.06"]
[EventType "swiss"]
[EventCountry "MNC"]
[SourceTitle "playchess.com"]
[Source "ChessBase"]
[SourceQuality "1"]
[TimeControl "180+2"]

{[%evp 12,79,29,33,42,23,45,27,24,4,11,5,19,7,0,0,0,-15,0,-20,0,-26,0,-25,0,0,0,0,0,0,11,0,22,20,37,20,25,16,25,18,8,3,11,10,17,16,91,0,136,136,252,257,242,228,418,390,384,235,837,431,760,770,1396,1398,29985,29986,29988,29989,29996,29997]} 1. e4 {[%emt 0:00:01]} c5 {[%emt 0:00:00]} 2. Nf3 {[%emt 0:00:01]} e6 {[%emt 0:00:01]} 3. d4 {[%emt 0:00:00]} cxd4 {[%emt 0:00:00]} 4. Nxd4 {[%emt 0:00:01]} a6 {[%emt 0:00:01]} 5. Bd3 {[%emt 0:00:03]} d5 {[%emt 0:00:01]} 6. exd5 {[%emt 0:00:05]} Qxd5 {[%emt 0:00:00] [#]} 7. O-O $1 {[%emt 0:00:04] Active counter play!} Nd7 {[%emt 0:00:01]} (7... Qxd4 $2 8. Bb5+ axb5 9. Qxd4 $18) 8. Be3 {[%emt 0:00:04]} Bc5 {[%emt 0:00:03]} 9. Nc3 {[%emt 0:00:10]} Qe5 {[%emt 0:00:02]} 10. Nf3 {[%emt 0:00:10]} Qc7 {[%emt 0:00:01]} 11. Qe2 {[%emt 0:00:07]} Ngf6 {[%emt 0:00:01]} 12. a4 {[%emt 0:00:05]} b6 {[%emt 0:00:14]} 13. Ne4 {[%emt 0:00:05]} Bxe3 {[%emt 0:00:03]} 14. Qxe3 {[%emt 0:00:02]} Bb7 {[%emt 0:00:13]} 15. h3 {[%emt 0:00:31]} O-O {[%emt 0:00:02]} 16. Rfe1 {[%emt 0:00:05]} h6 {[%emt 0:00:05]} 17. Rad1 {[%emt 0:00:07]} Nxe4 {[%emt 0:00:23]} 18. Bxe4 {[%emt 0:00:01]} Bxe4 {[%emt 0:00:02]} 19. Qxe4 {[%emt 0:00:02]} Nf6 {[%emt 0:00:04]} 20. Qe2 {[%emt 0:01:58]} Rfc8 {[%emt 0:00:09]} 21. c3 {[%emt 0:00:00]} Nd5 {[%emt 0:00:17]} 22. Rd4 {[%emt 0:00:00]} Qb7 {[%emt 0:00:35]} 23. Ne5 {[%emt 0:00:00]} b5 {[%emt 0:00:09]} 24. Qf3 {[%emt 0:00:00]} Rab8 {[%emt 0:00:07]} 25. axb5 {[%emt 0:00:00]} axb5 {[%emt 0:00:01]} 26. Red1 {[%emt 0:00:00]} Qc7 {[%emt 0:00:30]} 27. Ng4 {[%emt 0:00:00]} Qe7 {[%emt 0:00:08]} 28. Qg3 {[%emt 0:00:00]} Qg5 {[%emt 0:00:06]} (28... Kh7 $11) 29. Re1 {[%emt 0:00:00]} ({Better is} 29. h4 $16 Qg6 30. h5) 29... Ra8 {[%emt 0:00:09]} (29... h5 $11 {remains equal.} 30. Qe5 Qxe5 31. Nxe5 Ra8) 30. h4 $16 {[%emt 0:00:00][%cal Bh3h4,Bh4h5][%mdl 32]} Qg6 {[%emt 0:00:01] [#]} (30... Qd8 $16 {was called for.}) 31. h5 $1 $18 {[%emt 0:00:00][%mdl 512]} Qg5 {[%emt 0:00:10][%cal Oa8a4] [#]} (31... Qxh5 $2 32. Rxd5 Qg6 (32... exd5 $2 33. Nf6+ Kh8 34. Nxh5 $18) 33. Rxb5 $18) 32. f4 $1 {[%emt 0:00:01]} Qd8 $2 {[%emt 0:00:14]} ({Don't play} 32... Qxh5 33. Rxd5 Qg6 (33... exd5 $2 {loses.} 34. Nf6+ Kh8 35. Nxh5 $18) 34. Rd3 $18 (34. Rxb5 f5 $18)) (32... Nxf4 33. Qxf4 (33. Rxf4 f5 $14) 33... Qxh5) 33. Nxh6+ {[%emt 0:00:05]} Kf8 {[%emt 0:00:00]} 34. Ng4 {[%emt 0:00:03]} Qb6 $2 {[%emt 0:00:03]} (34... Rc4 35. h6 g6) 35. Kh2 {[%emt 0:00:03] and h6 would now be decisive} b4 {[%emt 0:00:02]} (35... Ra4 $142 36. Ne5 Qd8 37. Rxa4 bxa4) 36. h6 {[%emt 0:00:08]} gxh6 {[%emt 0:00:05]} 37. Nxh6 {[%emt 0:00:05][%cal Od4d5] Intending Rxd5! and mate.} Nf6 {[%emt 0:00:05]} 38. Qg5 {[%emt 0:00:05]} e5 {[%emt 0:00:05]} 39. fxe5 {[%emt 0:00:02][%cal Bf4e5,Be5f6][%mdl 32]} bxc3 {[%emt 0:00:02] [#]} 40. exf6 $1 {[%emt 0:00:02]} 1-0

[Event "European Women Blitz-ch 2024"]
[Site "Monaco"]
[Date "2025.01.10"]
[Round "12.5"]
[White "Wagner, Dinara"]
[Black "Ushenina, Anna"]
[Result "0-1"]
[Annotator "TA"]
[ECO "D40"]
[WhiteElo "2437"]
[BlackElo "2418"]
[PlyCount "91"]
[EventDate "2025.01.06"]
[EventType "swiss"]
[EventCountry "MNC"]
[SourceTitle "playchess.com"]
[Source "ChessBase"]
[SourceQuality "1"]
[TimeControl "180+2"]

{[%evp 18,91,7,0,-28,-7,11,0,4,0,0,-10,-11,-43,-13,-29,-20,-36,-21,-25,-37,-38,-18,-22,-22,-82,-75,-64,-14,-67,-65,-77,-91,-125,-119,-113,-114,-119,-112,-137,-149,-177,-168,-168,-181,-184,-142,-140,360,-250,-242,-1015,-991,-1143,-1123,-1064,-736,-2449,-2420,-5110,-4883,-2926,-2076,-29975,-29966,-29968,-6984,-29973,-29973,-29973,-29973,-29972,-10584,-29981,-29982,-29981]} 1. d4 {[%emt 0:00:01]} d5 {[%emt 0:00:01]} 2. c4 {[%emt 0:00:01]} dxc4 {[%emt 0:00:01]} 3. Nf3 {[%emt 0:00:02]} Nf6 {[%emt 0:00:02]} 4. e3 {[%emt 0:00:00]} e6 {[%emt 0:00:01]} 5. Bxc4 {[%emt 0:00:01]} c5 {[%emt 0:00:00]} 6. O-O {[%emt 0:00:03]} Nc6 {[%emt 0:00:01]} 7. a3 {[%emt 0:00:02]} a6 {[%emt 0:00:07]} 8. Nc3 {[%emt 0:00:14]} b5 {[%emt 0:00:29]} 9. Ba2 {[%emt 0:00:11]} Bb7 {[%emt 0:00:01]} 10. d5 {[%emt 0:00:00]} exd5 {[%emt 0:00:06]} 11. Nxd5 {[%emt 0:00:01][%cal Oe3e4]} Nxd5 {[%emt 0:00:14]} 12. Bxd5 {[%emt 0:00:01]} Bd6 {[%emt 0:00:03] Dodges Ne5. The position is equal.} 13. e4 {[%emt 0:00:05] [#] Black must now prevent Ng5.} O-O {[%emt 0:00:04]} 14. e5 {[%emt 0:00:52]} Be7 {[%emt 0:00:30]} 15. Bf4 {[%emt 0:00:01]} Qb6 {[%emt 0:00:11] aiming for ...Rad8.} 16. Qe2 {[%emt 0:00:29]} (16. Qc2 {is interesting.} Nb4 17. axb4 Bxd5 18. Be3) 16... Rad8 {[%emt 0:00:22]} 17. Rad1 {[%emt 0:00:00]} Na5 {[%emt 0:00:08]} 18. Bxb7 {[%emt 0:00:19]} Nxb7 {[%emt 0:00:10]} 19. h3 {[%emt 0:00:01]} h6 {[%emt 0:00:05]} 20. Qe4 {[%emt 0:00:08][%cal Oe5e6]} c4 {[%emt 0:00:04]} 21. Qf5 {[%emt 0:00:02]} (21. Nd4 $11) 21... Nc5 $17 {[%emt 0:00:13]} 22. Be3 {[%emt 0:00:07]} Qe6 {[%emt 0:00:01]} ({Better is} 22... Qg6 $15 23. Nh4 Qc6 (23... Bxh4 24. Qxg6 fxg6 25. Bxc5 $15) 24. Bxc5 Bxc5) 23. Qxe6 {[%emt 0:00:27]} (23. Nd4 $11 Qc8 24. Qxc8 Rxc8 25. Nf5) 23... Nxe6 {[%emt 0:00:00]} 24. Nd4 {[%emt 0:00:01]} Nxd4 {[%emt 0:00:06]} 25. Rxd4 {[%emt 0:00:07]} Rxd4 {[%emt 0:00:03]} 26. Bxd4 {[%emt 0:00:01][%mdl 4096] Endgame. KRB-KRB} Rd8 {[%emt 0:00:01]} 27. Bc3 {[%emt 0:00:01]} Bc5 {[%emt 0:00:09]} 28. Re1 {[%emt 0:00:01]} Kf8 {[%emt 0:00:03] Black is more active.} 29. e6 {[%emt 0:00:12]} f6 {[%emt 0:00:32]} 30. Kf1 {[%emt 0:00:09]} Ke7 {[%emt 0:00:01]} 31. f4 {[%emt 0:00:02]} g6 {[%emt 0:00:06]} 32. g4 {[%emt 0:00:02][%cal Og4g5]} Rd6 $2 {[%emt 0:00:01][%mdl 8192] [#]} (32... Rd5 $17 33. Kg2 Bd6) 33. Kg2 $4 {[%emt 0:00:15][%mdl 8192]} (33. f5 Rd5 34. fxg6 Rg5 $11) (33. Bxf6+ $1 $18 {is the narrow road to win.} Ke8 (33... Kxf6 $2 34. e7 $18) 34. f5 gxf5 35. gxf5) 33... Rxe6 $19 {[%emt 0:00:02]} 34. Rxe6+ {[%emt 0:00:01]} (34. Rd1) 34... Kxe6 {[%emt 0:00:00] KB-KB} 35. Kf3 {[%emt 0:00:01]} f5 {[%emt 0:00:04]} 36. Bg7 {[%emt 0:00:02]} h5 {[%emt 0:00:02] Hoping for ...Kd5.} 37. gxh5 {[%emt 0:00:01]} gxh5 {[%emt 0:00:00]} 38. Bc3 {[%emt 0:00:01]} Kd5 {[%emt 0:00:04]} 39. Bd2 {[%emt 0:00:09]} Bd4 {[%emt 0:00:02]} 40. Bc1 {[%emt 0:00:00]} c3 {[%emt 0:00:05]} 41. bxc3 {[%emt 0:00:02]} Bxc3 {[%emt 0:00:00] ( -> ...a5)} 42. Ke3 {[%emt 0:00:01]} Kc4 {[%emt 0:00:01]} 43. Ke2 {[%emt 0:00:04]} Kb3 {[%emt 0:00:05]} 44. Kd3 {[%emt 0:00:03]} Bf6 {[%emt 0:00:02]} (44... a5 $142 45. Be3 Bb2 46. Bf2 a4 (46... Kxa3 $2 47. Bb6 $19) (46... Bxa3 $2 47. Kd4 $19) 47. Bh4 Bxa3 (47... Kxa3 $2 48. Kc2 $19) 48. Kd4 Bb2+ 49. Kd5 a3 50. Be7 a2 51. Ke6 a1=Q (51... a1=B $2 52. Kxf5 Ba3 53. Bh4 $19) 52. Kxf5 Qa6 53. Bh4 Qc6 54. Bg5 Qd7+ 55. Kg6 Qe8+ (55... Qxh3 {gets mated.} 56. f5 Ka2 57. Bd2 Qg2+ 58. Kf7 Qxd2 59. Ke6 Qd4 60. f6 Qxf6+ 61. Kd5 Bd4 62. Ke4 Bb6 63. Kd3 Kb2 64. Ke4 Qg5 65. Kf3 Qg4#) 56. Kh6 Qf7 57. Bd8 b4 (57... Qxf4+ $2 58. Bg5 $19) 58. Kg5 Kc4 59. Kh4 b3 (59... Qxf4+ {is a self mate.} 60. Kxh5 Bf6 61. Bxf6 Qxf6 62. h4 b3 63. Kg4 b2 64. Kh3 Qf3+ 65. Kh2 b1=Q 66. h5 Qbh1#) 60. Kg5 Bd4 61. Ba5 b2 62. Bc7 b1=Q (62... b1=B 63. f5 Qxf5+ 64. Kh4 Qf6+ 65. Kxh5 Qg6+ 66. Kh4 Bf6#) (62... Bf6+ {leads to mate.} 63. Kh6 b1=Q 64. f5 Qg7+ 65. Kxh5 Qxf5#) 63. f5 Qg1+ (63... Qxc7 64. Kg6 Qg1+ 65. Kh6 Qf4+ 66. Kxh5 Qgg5#) (63... Be3+ $2 64. Bf4 Qbxf5+ 65. Kh6 Bxf4#) 64. Bg3 Qxg3+ 65. Kh6 Qgg7#) 45. Kd2 {[%emt 0:00:05]} Bb2 {[%emt 0:00:04]} 46. Bxb2 {[%emt 0:00:05] Weighted Error Value: White=1.10/Black=0.38.  Loses game:     	---       	Black=1      Missed win:     	White=1     	---        Mistake:       	White=3     	Black=1      Inaccurate:     	White=2     	Black=1      OK:         	White=5     	Black=10     Best:        	White=2     	Black=1} 0-1

[Event "European Women Blitz-ch 2024"]
[Site "Monaco"]
[Date "2025.01.10"]
[Round "12.6"]
[White "Atalik, Ekaterina"]
[Black "Paehtz, Elisabeth"]
[Result "1-0"]
[Annotator "TA"]
[ECO "D00"]
[WhiteElo "2395"]
[BlackElo "2428"]
[PlyCount "93"]
[EventDate "2025.01.06"]
[EventType "swiss"]
[EventCountry "MNC"]
[SourceTitle "playchess.com"]
[Source "ChessBase"]
[SourceQuality "1"]
[TimeControl "180+2"]

{[%evp 23,93,18,9,0,-4,-14,119,44,60,45,43,50,81,91,71,21,110,109,123,133,142,114,193,167,179,45,62,0,153,130,159,109,90,98,109,40,129,126,144,151,194,186,251,248,406,406,421,415,577,584,584,596,653,631,634,629,745,754,757,751,708,691,674,448,488,489,552,549,604,492,1195,1169]} 1. d4 {[%emt 0:00:02]} Nf6 {[%emt 0:00:01]} 2. Nc3 {[%emt 0:00:03]} d5 {[%emt 0:00:01]} 3. Bf4 {[%emt 0:00:02]} g6 {[%emt 0:00:03]} 4. e3 {[%emt 0:00:05]} c6 {[%emt 0:00:01]} 5. Nf3 {[%emt 0:00:05]} Bg7 {[%emt 0:00:03]} 6. Ne5 {[%emt 0:00:02]} Nfd7 {[%emt 0:00:07]} 7. Nd3 {[%emt 0:00:05]} Na6 {[%emt 0:00:05]} 8. Be2 {[%emt 0:00:04]} Nc7 {[%emt 0:00:02]} 9. O-O {[%emt 0:00:02]} O-O {[%emt 0:00:03]} 10. Na4 {[%emt 0:00:03]} Ne6 {[%emt 0:00:06]} 11. Bg3 {[%emt 0:00:01]} b5 {[%emt 0:00:08]} 12. Nc3 {[%emt 0:00:10]} a5 {[%emt 0:00:06]} 13. Bg4 {[%emt 0:00:05]} f5 {[%emt 0:00:06]} 14. Bf3 {[%emt 0:00:01]} Ng5 {[%emt 0:00:19] [#]} (14... Bb7 $11) 15. Nxb5 {[%emt 0:00:13]} (15. Nxd5 $1 $16 {[%mdl 512] and Bc7 would now be decisive} e5 (15... Ra6 16. N5f4) 16. dxe5) 15... Nxf3+ {[%emt 0:00:17]} 16. Qxf3 {[%emt 0:00:02]} f4 {[%emt 0:00:23]} 17. exf4 {[%emt 0:00:14]} (17. Bxf4 g5 18. Nc7 Ne5 $17 (18... Rxf4 19. Nxf4 Qxc7 20. Nxd5 $14)) (17. Nxf4 Nb6 18. Nc3 g5 $17) 17... Nb6 {[%emt 0:00:12]} 18. Nc3 {[%emt 0:00:03]} Bxd4 {[%emt 0:00:02]} 19. Qe2 {[%emt 0:00:07]} (19. Bh4 $16) 19... Nc4 {[%emt 0:00:14]} (19... a4 $11 {remains equal.}) 20. Na4 $16 {[%emt 0:00:09]} Bf6 {[%emt 0:00:11]} 21. Rad1 {[%emt 0:00:07]} Bf5 {[%emt 0:00:07]} 22. b3 {[%emt 0:00:06]} Nd6 {[%emt 0:00:02]} (22... Nb6 $16) 23. Ne5 {[%emt 0:00:02]} Qc7 {[%emt 0:00:04]} 24. Nc5 {[%emt 0:00:04]} (24. Rfe1 $18) 24... Qa7 $1 $14 {[%emt 0:00:07]} 25. Na4 {[%emt 0:00:19]} (25. Nxc6 $2 Qxc5 26. Nxe7+ Bxe7 27. Qxe7 Rae8 $19 (27... Bxc2 28. f5 $17)) (25. Ned3 $14) 25... Rfc8 $2 {[%emt 0:00:09]} (25... Qc7 $1 $11) 26. Kh1 $16 {[%emt 0:00:01]} Qa6 {[%emt 0:00:03]} 27. Qxa6 {[%emt 0:00:07]} ({White should play} 27. Rfe1) 27... Rxa6 $16 {[%emt 0:00:01]} 28. Nc5 {[%emt 0:00:08]} Ra7 {[%emt 0:00:00]} 29. c3 {[%emt 0:00:07]} (29. f3 $16) 29... h5 {[%emt 0:00:03] [#]} (29... Ne4 $14 30. Na4 Be6) 30. f3 $1 $16 {[%emt 0:00:03]} Nf7 {[%emt 0:00:17]} 31. Rfe1 {[%emt 0:00:05]} h4 {[%emt 0:00:15]} 32. Bf2 {[%emt 0:00:02]} Raa8 {[%emt 0:00:02]} (32... g5 $142 33. Ne4 dxe4) 33. Bd4 $18 {[%emt 0:00:02]} Nd6 $2 {[%emt 0:00:07]} (33... a4 {is a better defense.} 34. Nxa4 (34. bxa4 Bxe5 35. fxe5 Bc2 $16) 34... Rc7 35. Nxf7 Kxf7) 34. g4 $18 {[%emt 0:00:04]} hxg3 {[%emt 0:00:02]} 35. hxg3 {[%emt 0:00:01]} Kg7 {[%emt 0:00:03]} 36. g4 {[%emt 0:00:04]} Rh8+ {[%emt 0:00:01]} 37. Kg2 {[%emt 0:00:02]} Bc8 {[%emt 0:00:02]} 38. g5 {[%emt 0:00:05]} Bh3+ {[%emt 0:00:10]} 39. Kf2 {[%emt 0:00:03]} Bf5 {[%emt 0:00:03]} 40. gxf6+ {[%emt 0:00:07]} exf6 {[%emt 0:00:01]} 41. Ng4 {[%emt 0:00:02]} Bxg4 {[%emt 0:00:07]} 42. fxg4 {[%emt 0:00:01]} Rh2+ {[%emt 0:00:00]} 43. Ke3 {[%emt 0:00:06]} Rah8 {[%emt 0:00:04]} 44. Kd3 {[%emt 0:00:05]} (44. Ne6+ Kf7 45. Ng5+ fxg5 46. Bxh8 Rxh8 $14) 44... Kf7 {[%emt 0:00:04]} 45. a4 {[%emt 0:00:06]} Rg2 {[%emt 0:00:01]} 46. g5 {[%emt 0:00:02]} fxg5 {[%emt 0:00:02]} (46... Rhh2 $142 47. Re6 (47. Bxf6 Nf5 $18) 47... Rh3+ 48. Re3 Rgg3) 47. Bxh8 {[%emt 0:00:02]} 1-0